fUSD/lending_fUSD_20240619
["ID","MTS","AMOUNT","RATE_DAILY","PERIOD"]
[329928345,1718839844928,-500.0,0.00013698,2]
[329928346,1718839844974,-500.0,0.00013698,2]
[329928347,1718839844987,-1775.52,0.00013698,2]
[329928348,1718839844998,-500.0,0.00013698,2]
[329928349,1718839845007,-500.0,0.00013698,2]
[329928350,1718839845016,-500.0,0.00013698,2]
[329928351,1718839845027,-343.60416235,0.00013698,2]
[329928352,1718839845036,-500.0,0.00013698,2]
[329928353,1718839845046,-865.75,0.00013698,2]
[329928354,1718839845056,-500.0,0.00013698,2]
[329928355,1718839845066,-500.0,0.00013698,2]
[329928356,1718839845079,-931.76,0.00013698,2]
[329928357,1718839845089,-500.0,0.00013698,2]
[329928358,1718839845099,-500.0,0.00013698,2]
[329928359,1718839845112,-932.1,0.00013698,2]
[329928360,1718839845122,-500.0,0.00013698,2]
[329928361,1718839845132,-500.0,0.00013698,2]
[329928362,1718839845143,-1592.45,0.00013698,2]
[329928363,1718839845152,-1333.25,0.00013698,2]
[329928364,1718839845162,-702.77,0.00013698,2]
[329928365,1718839845171,-1134.4,0.00013698,2]
[329928366,1718839845180,-979.9,0.00013698,2]
[329928367,1718839845190,-1452.85,0.00013698,2]
[329928368,1718839845199,-500.0,0.00013698,2]
[329928369,1718839845208,-500.0,0.00013698,2]
[329928370,1718839845218,-500.0,0.00013698,2]
[329928371,1718839845227,-500.0,0.00013698,2]
[329928372,1718839845236,-500.0,0.00013698,2]
[329928373,1718839845246,-500.0,0.00013698,2]
[329928374,1718839845255,-500.0,0.00013698,2]
[329928375,1718839845264,-200.0,0.00013698,2]
[329928376,1718839845274,-500.0,0.00013698,2]
[329928377,1718839845283,-500.0,0.00013698,2]
[329928378,1718839845293,-882.66,0.00013698,2]
[329928379,1718839845302,-500.0,0.00013698,2]
[329928380,1718839845311,-538.80925074,0.00013698,2]
[329928381,1718839845320,-500.0,0.00013698,2]
[329928382,1718839845329,-500.0,0.00013698,2]
[329928383,1718839845339,-151.0,0.00013698,2]
[329928384,1718839845349,-500.0,0.00013698,2]
[329928385,1718839845359,-500.0,0.00013698,2]
[329928386,1718839845368,-772.23,0.00013698,2]
[329928387,1718839845378,-500.0,0.00013698,2]
[329928388,1718839845390,-500.0,0.00013698,2]
[329928389,1718839845401,-500.0,0.00013698,2]
[329928390,1718839845411,-412.27897983,0.00013698,2]
[329928391,1718839845423,-500.0,0.00013698,2]
[329928392,1718839845433,-818.15,0.00013698,2]
[329928393,1718839845443,-500.0,0.00013698,2]
[329928394,1718839845453,-445.74604905,0.00013698,2]
[329928395,1718839845464,-500.0,0.00013698,2]
[329928396,1718839845474,-500.0,0.00013698,2]
[329928397,1718839845484,-500.0,0.00013698,2]
[329928398,1718839845495,-500.0,0.00013698,2]
[329928399,1718839845505,-500.0,0.00013698,2]
[329928400,1718839845514,-500.0,0.00013698,2]
[329928401,1718839845524,-532.6,0.00013698,2]
[329928402,1718839845535,-795.78,0.00013698,2]
[329928403,1718839845545,-500.0,0.00013698,2]
[329928404,1718839845555,-459.55048392,0.00013698,2]
[329928405,1718839845564,-500.0,0.00013698,2]
[329928406,1718839845574,-1224.99,0.00013698,2]
[329928407,1718839845585,-500.0,0.00013698,2]
[329928408,1718839845594,-500.0,0.00013698,2]
[329928409,1718839845604,-765.96,0.00013698,2]
[329928410,1718839845614,-500.0,0.00013698,2]
[329928411,1718839845626,-500.0,0.00013698,2]
[329928412,1718839845637,-500.0,0.00013698,2]
[329928413,1718839845649,-583.65,0.00013698,2]
[329928414,1718839845659,-2097.54,0.00013698,2]
[329928415,1718839845668,-500.0,0.00013698,2]
[329928416,1718839845678,-500.0,0.00013698,2]
[329928417,1718839845688,-500.0,0.00013698,2]
[329928418,1718839845697,-500.0,0.00013698,2]
[329928419,1718839845707,-699.47,0.00013698,2]
[329928420,1718839845716,-1051.41,0.00013698,2]
[329928421,1718839845725,-1510.34,0.00013698,2]
[329928422,1718839845734,-500.0,0.00013698,2]
[329928423,1718839845744,-500.0,0.00013698,2]
[329928424,1718839845754,-500.0,0.00013698,2]
[329928425,1718839845764,-950.3,0.00013698,2]
[329928426,1718839845773,-1368.2,0.00013698,2]
[329928427,1718839845783,-991.97,0.00013698,2]
[329928428,1718839845792,-432.8032432,0.00013698,2]
[329928429,1718839845801,-500.0,0.00013698,2]
[329928430,1718839845811,-630.57458624,0.00013698,2]
[329928431,1718839845822,-500.0,0.00013698,2]
[329928432,1718839845833,-414.1708154,0.00013698,2]
[329928433,1718839845843,-500.0,0.00013698,2]
[329928434,1718839845853,-632.17443346,0.00013698,2]
[329928435,1718839845863,-518.2,0.00013698,2]
[329928436,1718839845875,-892.57,0.00013698,2]
[329928437,1718839845884,-500.0,0.00013698,2]
[329928438,1718839845895,-567.13,0.00013698,2]
[329928439,1718839845909,-500.0,0.00013698,2]
[329928440,1718839845920,-500.0,0.00013698,2]
[329928441,1718839845931,-500.0,0.00013698,2]
[329928442,1718839845943,-1299.66,0.00013698,2]
[329928443,1718839845952,-500.0,0.00013698,2]
[329928444,1718839845962,-500.0,0.00013698,2]
[329928445,1718839845972,-1128.28,0.00013698,2]
[329928446,1718839845982,-500.0,0.00013698,2]
[329928447,1718839845993,-500.0,0.00013698,2]
[329928448,1718839846002,-500.0,0.00013698,2]
[329928449,1718839846012,-500.0,0.00013698,2]
[329928450,1718839846021,-500.0,0.00013698,2]
[329928451,1718839846031,-500.0,0.00013698,2]
[329928452,1718839846042,-1287.16,0.00013698,2]
[329928453,1718839846051,-500.0,0.00013698,2]
[329928454,1718839846061,-710.06,0.00013698,2]
[329928455,1718839846071,-1649.53,0.00013698,2]
[329928456,1718839846081,-500.0,0.00013698,2]
[329928457,1718839846090,-1062.53,0.00013698,2]
[329928458,1718839846101,-597.94,0.00013698,2]
[329928459,1718839846112,-500.0,0.00013698,2]
[329928460,1718839846123,-882.77,0.00013698,2]
[329928461,1718839846134,-500.0,0.00013698,2]
[329928462,1718839846145,-1794.72,0.00013698,2]
[329928463,1718839846155,-518.31691849,0.00013698,2]
[329928464,1718839846166,-656.19,0.00013698,2]
[329928465,1718839846177,-1417.8,0.00013698,2]
[329928466,1718839846189,-500.0,0.00013698,2]
[329928467,1718839846200,-666.9,0.00013698,2]
[329928468,1718839846211,-175.05435002,0.00013698,2]
[329928469,1718839846222,-500.0,0.00013698,2]
[329928470,1718839846232,-618.74,0.00013698,2]
[329928471,1718839846243,-597.21,0.00013698,2]
[329928472,1718839846253,-2930.39,0.00013698,2]
[329928473,1718839846262,-500.0,0.00013698,2]
[329928474,1718839846271,-841.09,0.00013698,2]
[329928475,1718839846280,-500.0,0.00013698,2]
[329928476,1718839846290,-1199.96,0.00013698,2]
[329928477,1718839846299,-1593.45966,0.00013698,2]
[329928478,1718839846308,-500.0,0.00013698,2]
[329928479,1718839846318,-500.0,0.00013698,2]
[329928480,1718839846327,-1703.9,0.00013698,2]
[329928481,1718839846340,-769.68,0.00013698,2]
[329928482,1718839846350,-15457.55,0.00013698,2]
[329928483,1718839846359,-500.0,0.00013698,2]
[329928484,1718839846368,-151.0,0.00013698,2]
[329928485,1718839846377,-2489.17,0.00013698,2]
[329928486,1718839846387,-151.0,0.00013698,2]
[329928487,1718839846398,-500.0,0.00013698,2]
[329928488,1718839846408,-258.387759,0.00013698,2]
[329928489,1718839846419,-2249.41,0.00013698,2]
[329928490,1718839846429,-14219.45,0.00013698,2]
[329928491,1718839846441,-288.52125518,0.00013698,2]
[329928492,1718839846451,-622.54946184,0.00013698,2]
[329928493,1718839846461,-2440.77,0.00013698,2]
[329928494,1718839846471,-500.0,0.00013698,2]
[329928495,1718839846482,-500.0,0.00013698,2]
[329928496,1718839846493,-689.55,0.00013698,2]
[329928497,1718839846505,-639.38328351,0.00013698,2]
[329928498,1718839846515,-500.0,0.00013698,2]
[329928499,1718839846526,-604.36897753,0.00013698,2]
[329928500,1718839846538,-500.0,0.00013698,2]
[329928501,1718839846548,-1567.51,0.00013698,2]
[329928502,1718839846558,-500.0,0.00013698,2]
[329928503,1718839846567,-899.32,0.00013698,2]
[329928504,1718839846576,-2407.42,0.00013698,2]
[329928505,1718839846586,-500.0,0.00013698,2]
[329928506,1718839846597,-500.0,0.00013698,2]
[329928507,1718839846608,-500.0,0.00013698,2]
[329928508,1718839846618,-1209.73,0.00013698,2]
[329928509,1718839846628,-47891.19,0.00013698,2]
[329928510,1718839846640,-569.77,0.00013698,2]
[329928511,1718839846651,-526.54635963,0.00013698,2]
[329928512,1718839846661,-3313.06,0.00013698,2]
[329928513,1718839846671,-500.0,0.00013698,2]
[329928514,1718839846681,-1693.3,0.00013698,2]
[329928515,1718839846691,-575.85725249,0.00013698,2]
[329928516,1718839846701,-1759.44,0.00013698,2]
[329928517,1718839846711,-57737.62,0.00013698,2]
[329928518,1718839846721,-1504.27,0.00013698,2]
[329928519,1718839846731,-500.0,0.00013698,2]
[329928520,1718839846741,-500.0,0.00013698,2]
[329928521,1718839846751,-508.10203298,0.00013698,2]
[329928522,1718839846760,-1113.15,0.00013698,2]
[329928523,1718839846771,-2618.39,0.00013698,2]
[329928524,1718839846781,-500.0,0.00013698,2]
[329928525,1718839846791,-16765.91,0.00013698,2]
[329928526,1718839846800,-500.0,0.00013698,2]
[329928527,1718839846810,-1601.65,0.00013698,2]
[329928528,1718839846820,-1178.65,0.00013698,2]
[329928529,1718839846830,-554.56,0.00013698,2]
[329928530,1718839846841,-2120.53,0.00013698,2]
[329928531,1718839846850,-4987.72,0.00013698,2]
[329928532,1718839846860,-500.0,0.00013698,2]
[329928533,1718839846870,-697.27,0.00013698,2]
[329928534,1718839846881,-600.2,0.00013698,2]
[329928535,1718839846892,-500.0,0.00013698,2]
[329928536,1718839846903,-2885.28,0.00013698,2]
[329928537,1718839846918,-1258.26,0.00013698,2]
[329928538,1718839846928,-516.44978238,0.00013698,2]
[329928539,1718839846937,-780.87,0.00013698,2]
[329928540,1718839846950,-3445.18,0.00013698,2]
[329928541,1718839846961,-500.0,0.00013698,2]
[329928542,1718839846972,-956.29,0.00013698,2]
[329928543,1718839846982,-746.43,0.00013698,2]
[329928544,1718839846995,-3591.65,0.00013698,2]
[329928545,1718839847005,-1289.73,0.00013698,2]
[329928546,1718839847015,-8284.87,0.00013698,2]
[329928547,1718839847025,-1490.1,0.00013698,2]
[329928548,1718839847035,-3041.33,0.00013698,2]
[329928549,1718839847045,-500.0,0.00013698,2]
[329928550,1718839847055,-1345.0,0.00013698,2]
[329928551,1718839847064,-1676.81,0.00013698,2]
[329928552,1718839847074,-500.0,0.00013698,2]
[329928553,1718839847085,-500.0,0.00013698,2]
[329928554,1718839847096,-500.0,0.00013698,2]
[329928555,1718839847106,-564.81145955,0.00013698,2]
[329928556,1718839847117,-3390.34,0.00013698,2]
[329928557,1718839847129,-500.0,0.00013698,2]
[329928558,1718839847139,-500.0,0.00013698,2]
[329928559,1718839847148,-151.0,0.00013698,2]
[329928560,1718839847157,-151.0,0.00013698,2]
[329928561,1718839847168,-171.753856,0.00013698,2]
[329928562,1718839847179,-500.0,0.00013698,2]
[329928563,1718839847188,-3856.56,0.00013698,2]
[329928564,1718839847199,-1176.94,0.00013698,2]
[329928565,1718839847210,-500.0,0.00013698,2]
[329928566,1718839847220,-500.0,0.00013698,2]
[329928567,1718839847230,-500.0,0.00013698,2]
[329928568,1718839847239,-646.18897005,0.00013698,2]
[329928569,1718839847249,-1042.24,0.00013698,2]
[329928570,1718839847258,-4479.45,0.00013698,2]
[329928571,1718839847267,-500.0,0.00013698,2]
[329928572,1718839847278,-1945.42,0.00013698,2]
[329928573,1718839847287,-500.0,0.00013698,2]
[329928574,1718839847298,-7702.06,0.00013698,2]
[329928575,1718839847307,-500.0,0.00013698,2]
[329928576,1718839847316,-5648.42,0.00013698,2]
[329928577,1718839847326,-707.37,0.00013698,2]
[329928578,1718839847335,-151.0,0.00013698,2]
[329928579,1718839847344,-500.0,0.00013698,2]
[329928580,1718839847353,-500.0,0.00013698,2]
[329928581,1718839847363,-177.29383,0.00013698,2]
[329928582,1718839847372,-1015.28,0.00013698,2]
[329928583,1718839847381,-177.29383,0.00013698,2]
[329928584,1718839847390,-685.59,0.00013698,2]
[329928585,1718839847399,-177.29383,0.00013698,2]
[329928586,1718839847408,-500.0,0.00013698,2]
[329928587,1718839847417,-177.29383,0.00013698,2]
[329928588,1718839847426,-151.0,0.00013698,2]
[329928589,1718839847435,-500.0,0.00013698,2]
[329928590,1718839847444,-151.0,0.00013698,2]
[329928591,1718839847454,-500.0,0.00013698,2]
[329928592,1718839847463,-982.31,0.00013698,2]
[329928593,1718839847472,-1382.94,0.00013698,2]
[329928594,1718839847481,-151.0,0.00013698,2]
[329928595,1718839847490,-151.0,0.00013698,2]
[329928596,1718839847499,-1536.82,0.00013698,2]
[329928597,1718839847508,-5635.1,0.00013698,2]
[329928598,1718839847518,-500.0,0.00013698,2]
[329928599,1718839847526,-177.29383,0.00013698,2]
[329928600,1718839847536,-177.29383,0.00013698,2]
[329928601,1718839847546,-177.29383,0.00013698,2]
[329928602,1718839847555,-500.0,0.00013698,2]
[329928603,1718839847564,-177.29383,0.00013698,2]
[329928604,1718839847573,-20741.6,0.00013698,2]
[329928605,1718839847586,-500.0,0.00013698,2]
[329928606,1718839847595,-1163.9,0.00013698,2]
[329928607,1718839847603,-500.0,0.00013698,2]
[329928608,1718839847613,-6845.29,0.00013698,2]
[329928609,1718839847622,-500.0,0.00013698,2]
[329928610,1718839847631,-690.56,0.00013698,2]
[329928611,1718839847640,-500.0,0.00013698,2]
[329928612,1718839847649,-3266.46,0.00013698,2]
[329928613,1718839847658,-1922.98,0.00013698,2]
[329928614,1718839847668,-1512.73,0.00013698,2]
[329928615,1718839847677,-1192.72,0.00013698,2]
[329928616,1718839847686,-500.0,0.00013698,2]
[329928617,1718839847695,-25501.78,0.00013698,2]
[329928618,1718839847704,-1641.92,0.00013698,2]
[329928619,1718839847714,-500.0,0.00013698,2]
[329928620,1718839847723,-500.0,0.00013698,2]
[329928621,1718839847732,-15498.36,0.00013698,2]
[329928622,1718839847742,-500.0,0.00013698,2]
[329928623,1718839847751,-2060.32,0.00013698,2]
[329928624,1718839847760,-906.75,0.00013698,2]
[329928625,1718839847770,-748.83,0.00013698,2]
[329928626,1718839847779,-639.27,0.00013698,2]
[329928627,1718839847789,-886.46,0.00013698,2]
[329928628,1718839847798,-763.04,0.00013698,2]
[329928629,1718839847808,-2893.11,0.00013698,2]
[329928630,1718839847817,-520.89,0.00013698,2]
[329928631,1718839847826,-905.85,0.00013698,2]
[329928632,1718839847835,-500.0,0.00013698,2]
[329928633,1718839847844,-1823.91,0.00013698,2]
[329928634,1718839847854,-500.0,0.00013698,2]
[329928635,1718839847863,-1109.08,0.00013698,2]
[329928636,1718839847872,-9590.18,0.00013698,2]
[329928637,1718839847881,-315.04912409,0.00013698,2]
[329928638,1718839847891,-2397.03,0.00013698,2]
[329928639,1718839847900,-500.0,0.00013698,2]
[329928640,1718839847914,-9942.8,0.00013698,2]
[329928641,1718839847923,-500.0,0.00013698,2]
[329928642,1718839847932,-500.0,0.00013698,2]
[329928643,1718839847942,-1865.58,0.00013698,2]
[329928644,1718839847952,-1879.58,0.00013698,2]
[329928645,1718839847961,-1977.78,0.00013698,2]
[329928646,1718839847971,-6136.65783681,0.00013698,2]
[329928647,1718839848748,-2016.02216319,0.00013698,2]
[329928648,1718839848760,-500.0,0.00013698,2]
[329928649,1718839848771,-295.44534086,0.00013698,2]
[329928650,1718839848784,-1132.55465914,0.00013698,2]
[329928651,1718839848796,-2071.26,0.00013698,2]
[329928652,1718839848807,-500.0,0.00013698,2]
[329928653,1718839848818,-500.0,0.00013698,2]
[329928654,1718839848829,-500.0,0.00013698,2]
[329928655,1718839848840,-500.0,0.00013698,2]
[329928656,1718839848851,-500.0,0.00013698,2]
[329928657,1718839848862,-500.0,0.00013698,2]
[329928658,1718839848873,-500.0,0.00013698,2]
[329928659,1718839848884,-965.75,0.00013698,2]
[329928660,1718839848895,-500.0,0.00013698,2]
[329928661,1718839848911,-500.0,0.00013698,2]
[329928662,1718839848922,-500.0,0.00013698,2]
[329928663,1718839848933,-1888.37,0.00013698,2]
[329928664,1718839848944,-756.33,0.00013698,2]
[329928665,1718839848956,-500.0,0.00013698,2]
[329928666,1718839848967,-4561.12,0.00013698,2]
[329928667,1718839848978,-500.0,0.00013698,2]
[329928668,1718839848992,-500.0,0.00013698,2]
[329928669,1718839849005,-592.9,0.00013698,2]
[329928670,1718839849016,-500.0,0.00013698,2]
[329928671,1718839849027,-500.0,0.00013698,2]
[329928672,1718839849038,-500.0,0.00013698,2]
[329928673,1718839849050,-4249.29,0.00013698,2]
[329928674,1718839849062,-500.0,0.00013698,2]
[329928675,1718839849073,-1010.64,0.00013698,2]
[329928676,1718839849084,-1483.05,0.00013698,2]
[329928677,1718839849095,-3553.34,0.00013698,2]
[329928678,1718839849106,-2441.19537086,0.00013698,2]
[329928679,1718839849120,-741.079999,0.00013698,2]
[329928680,1718839849134,-1642.8995,0.00013698,2]
[329928681,1718839849147,-302.85004585,0.00013698,2]
[329928683,1718839850586,-668.29243017,0.00013698,2]
[329928685,1718840070555,5279.98752772,6.94e-05,2]
[329928729,1718841032626,-155.0,0.00010669,2]
[329928730,1718841032635,-323.67,0.0001067,2]
[329928731,1718841032645,-465.13962772,0.00012,2]
[329928732,1718841032655,-250.0,0.00012511,2]
[329928733,1718841032664,-330.29660445,0.00012569,2]
[329928737,1718841038310,-469.70339555,0.00012569,2]
[329928738,1718841038321,-211.64,0.00012602,2]
[329928739,1718841038331,-398.76,0.00012644,2]
[329928740,1718841038342,-200.0,0.00012688,2]
[329928741,1718841038354,-323.67,0.00012934,2]
[329928742,1718841038364,-200.0,0.00013,4]
[329928743,1718841038374,-500.0,0.000131,4]
[329928744,1718841038386,-200.45563121,0.000132,4]
[329928745,1718841038446,-599.54436879,0.000132,4]
[329928746,1718841038456,-929.84198884,0.000133,4]
[329928776,1718841041079,-170.15801116,0.000133,4]
[329928778,1718841041090,-1400.0,0.000134,4]
[329928780,1718841041099,-1211.44200401,0.00013424,2]
[329928782,1718841041108,-1113.23307853,0.00013424,2]
[329928784,1718841041120,-1066.75181534,0.00013424,2]
[329928786,1718841041131,-200.0,0.000135,4]
[329928788,1718841041140,-200.0,0.00013588,2]
[329928790,1718841041149,-200.0,0.00013588,2]
[329928792,1718841041159,-169.22912053,0.00013598,2]
[329928794,1718841041168,-159.88557937,0.00013598,2]
[329928796,1718841041179,-1551.67032526,0.00013598,2]
[329928798,1718841041189,-316.83251496,0.00013598,2]
[329928800,1718841041198,-200.0,0.000136,4]
[329928802,1718841041208,-1551.67032526,0.00013625,2]
[329928804,1718841041218,-1551.67032526,0.00013653,2]
[329928806,1718841041227,-159.88557937,0.00013674,2]
[329928808,1718841041237,-1551.67032526,0.0001368,2]
[329928810,1718841041247,-2356.9366091,0.00013686,2]
[329928812,1718841041256,-416.2603457,0.00013686,2]
[329928814,1718841041266,-346.8836211,0.00013686,2]
[329928816,1718841041277,-710.33544008,0.00013686,2]
[329928818,1718841041286,-15220.0463823,0.00013695,2]
[329928820,1718841041297,-1420.965,0.00013695,2]
[329928823,1718841041309,-513.48021401,0.00013695,2]
[329928825,1718841041321,-807.46741724,0.00013695,2]
[329928827,1718841041330,-502.0,0.00013698,2]
[329928829,1718841041340,-24.52518272,0.00013698,2]
[329928831,1718841041352,-1975.47481728,0.00013698,2]
[329928833,1718841041365,-200.0,0.00013698,2]
[329928835,1718841041375,-500.0,0.00013698,2]
[329928837,1718841041384,-626.77303285,0.00013698,2]
[329928839,1718841041395,-237.63703632,0.00013698,2]
[329928841,1718841041404,-500.0,0.00013698,2]
[329928843,1718841041413,-500.0,0.00013698,2]
[329928845,1718841041422,-686.81,0.00013698,2]
[329928847,1718841041432,-500.0,0.00013698,2]
[329928849,1718841041442,-166.89740472,0.00013698,2]
[329928851,1718841041453,-500.0,0.00013698,2]
[329928852,1718841041462,-701.89,0.00013698,2]
[329928854,1718841041472,-500.0,0.00013698,2]
[329928856,1718841041482,-579.88,0.00013698,2]
[329928859,1718841041492,-500.0,0.00013698,2]
[329928861,1718841041501,-546.73,0.00013698,2]
[329928863,1718841041511,-654.09,0.00013698,2]
[329928865,1718841041520,-660.67,0.00013698,2]
[329928867,1718841041531,-636.91,0.00013698,2]
[329928869,1718841041540,-505.66,0.00013698,2]
[329928870,1718841041550,-659.86,0.00013698,2]
[329928872,1718841041560,-500.0,0.00013698,2]
[329928874,1718841041569,-500.0,0.00013698,2]
[329928877,1718841041579,-500.0,0.00013698,2]
[329928878,1718841041588,-692.73,0.00013698,2]
[329928880,1718841041598,-805.93,0.00013698,2]
[329928882,1718841041607,-692.01,0.00013698,2]
[329928883,1718841041616,-485.54696618,0.00013698,2]
[329928884,1718841041641,-14.45303382,0.00013698,2]
[329928885,1718841041651,-500.0,0.00013698,2]
[329928886,1718841041662,-818.98,0.00013698,2]
[329928887,1718841041672,-500.0,0.00013698,2]
[329928888,1718841041682,-500.0,0.00013698,2]
[329928889,1718841041692,-472.22709652,0.00013698,2]
[329928890,1718841041703,-500.0,0.00013698,2]
[329928891,1718841041713,-118.0234584,0.00013698,2]
[329928892,1718841041752,-381.9765416,0.00013698,2]
[329928893,1718841041762,-570.57,0.00013698,2]
[329928894,1718841041771,-689.07,0.00013698,2]
[329928895,1718841041782,-609.03,0.00013698,2]
[329928896,1718841041791,-500.0,0.00013698,2]
[329928897,1718841041802,-500.0,0.00013698,2]
[329928898,1718841041811,-500.0,0.00013698,2]
[329928899,1718841041820,-1013.34,0.00013698,2]
[329928900,1718841041829,-500.0,0.00013698,2]
[329928901,1718841041839,-680.08,0.00013698,2]
[329928902,1718841041848,-500.0,0.00013698,2]
[329928903,1718841041857,-656.84,0.00013698,2]
[329928904,1718841041867,-500.0,0.00013698,2]
[329928905,1718841041876,-500.0,0.00013698,2]
[329928906,1718841041886,-500.0,0.00013698,2]
[329928907,1718841041895,-500.0,0.00013698,2]
[329928908,1718841041904,-763.97,0.00013698,2]
[329928909,1718841041914,-561.49,0.00013698,2]
[329928910,1718841041923,-500.0,0.00013698,2]
[329928911,1718841041933,-500.0,0.00013698,2]
[329928912,1718841041942,-500.0,0.00013698,2]
[329928913,1718841041951,-500.0,0.00013698,2]
[329928914,1718841041960,-565.36,0.00013698,2]
[329928915,1718841041970,-500.0,0.00013698,2]
[329928916,1718841041979,-500.0,0.00013698,2]
[329928917,1718841041988,-848.9,0.00013698,2]
[329928918,1718841041997,-465.6605032,0.00013698,2]
[329928919,1718841042006,-500.0,0.00013698,2]
[329928920,1718841042015,-421.64487411,0.00013698,2]
[329928921,1718841042025,-500.0,0.00013698,2]
[329928922,1718841042035,-500.0,0.00013698,2]
[329928923,1718841042044,-536.57,0.00013698,2]
[329928924,1718841042054,-500.0,0.00013698,2]
[329928925,1718841042063,-500.0,0.00013698,2]
[329928926,1718841042073,-578.84,0.00013698,2]
[329928927,1718841042082,-500.0,0.00013698,2]
[329928928,1718841042091,-500.0,0.00013698,2]
[329928929,1718841042101,-500.0,0.00013698,2]
[329928930,1718841042110,-500.0,0.00013698,2]
[329928931,1718841042120,-768.93,0.00013698,2]
[329928932,1718841042130,-500.0,0.00013698,2]
[329928933,1718841042140,-152.80281045,0.00013698,2]
[329928934,1718841042150,-654.61,0.00013698,2]
[329928935,1718841042160,-593.76,0.00013698,2]
[329928936,1718841042169,-683.9,0.00013698,2]
[329928937,1718841042179,-812.26,0.00013698,2]
[329928938,1718841042191,-500.0,0.00013698,2]
[329928939,1718841042201,-500.0,0.00013698,2]
[329928940,1718841042210,-569.13,0.00013698,2]
[329928941,1718841042220,-693.1,0.00013698,2]
[329928942,1718841042229,-500.0,0.00013698,2]
[329928943,1718841042239,-500.0,0.00013698,2]
[329928944,1718841042248,-500.0,0.00013698,2]
[329928945,1718841042258,-500.0,0.00013698,2]
[329928946,1718841042267,-500.0,0.00013698,2]
[329928947,1718841042278,-554.65,0.00013698,2]
[329928948,1718841042287,-500.0,0.00013698,2]
[329928949,1718841042298,-893.27,0.00013698,2]
[329928950,1718841042308,-500.0,0.00013698,2]
[329928951,1718841042317,-486.60910126,0.00013698,2]
[329928952,1718841042326,-500.0,0.00013698,2]
[329928953,1718841042336,-500.0,0.00013698,2]
[329928954,1718841042345,-500.0,0.00013698,2]
[329928955,1718841042355,-696.34,0.00013698,2]
[329928956,1718841042369,-673.48,0.00013698,2]
[329928957,1718841042378,-500.0,0.00013698,2]
[329928958,1718841042387,-500.0,0.00013698,2]
[329928959,1718841042397,-500.0,0.00013698,2]
[329928960,1718841042408,-500.0,0.00013698,2]
[329928961,1718841042418,-500.0,0.00013698,2]
[329928962,1718841042428,-500.0,0.00013698,2]
[329928963,1718841042437,-500.0,0.00013698,2]
[329928964,1718841042450,-500.0,0.00013698,2]
[329928965,1718841042460,-500.0,0.00013698,2]
[329928966,1718841042469,-500.0,0.00013698,2]
[329928967,1718841042479,-500.0,0.00013698,2]
[329928968,1718841042489,-500.0,0.00013698,2]
[329928969,1718841042498,-500.0,0.00013698,2]
[329928970,1718841042507,-772.22,0.00013698,2]
[329928971,1718841042516,-500.0,0.00013698,2]
[329928972,1718841042527,-500.0,0.00013698,2]
[329928973,1718841042536,-500.0,0.00013698,2]
[329928974,1718841042545,-500.0,0.00013698,2]